[Event "*** SCC Grand Prix: Titled Tuesday Blitz"]
[Site "Chess.com"]
[Date "2020.09.29"]
[Round "7"]
[White "ferdipy"]
[Black "SergioGarciaFuentes"]
[Result "0-1"]
[WhiteElo "2343"]
[BlackElo "2193"]
[TimeControl "180+1"]
[EndTime "11:16:29 PDT"]
[Termination "SergioGarciaFuentes won by checkmate"]

1. e4 {[%clk 0:03:00.9]} 1... e5 {[%clk 0:02:57.9]} 2. Nf3 {[%clk 0:03:00.7]}
2... Nf6 {[%clk 0:02:57.2]} 3. Nc3 {[%clk 0:03:00.4]} 3... Bb4 {[%clk
0:02:53.5]} 4. Bc4 {[%clk 0:03:00.6]} 4... Bxc3 {[%clk 0:02:41.7]} 5. dxc3
{[%clk 0:03:01.5]} 5... d6 {[%clk 0:02:41.8]} 6. Bg5 {[%clk 0:03:00.7]} 6... h6
{[%clk 0:02:37.7]} 7. Bh4 {[%clk 0:03:00.5]} 7... Be6 {[%clk 0:02:07.2]} 8. Bxe6
{[%clk 0:02:59.3]} 8... fxe6 {[%clk 0:02:08.1]} 9. Qe2 {[%clk 0:02:57.2]} 9...
Nbd7 {[%clk 0:01:47.8]} 10. O-O-O {[%clk 0:02:56.8]} 10... g5 {[%clk 0:01:35.8]}
11. Bg3 {[%clk 0:02:54.8]} 11... Qe7 {[%clk 0:01:31.3]} 12. h3 {[%clk
0:02:48.8]} 12... O-O-O {[%clk 0:01:22.5]} 13. Qb5 {[%clk 0:02:48.2]} 13... Nxe4
{[%clk 0:01:12.3]} 14. Qa4 {[%clk 0:02:42.2]} 14... Nxg3 {[%clk 0:01:02.8]} 15.
fxg3 {[%clk 0:02:41.9]} 15... Kb8 {[%clk 0:01:01.6]} 16. g4 {[%clk 0:02:40.1]}
16... Rhf8 {[%clk 0:00:57.9]} 17. Qe4 {[%clk 0:02:34.3]} 17... Rf4 {[%clk
0:00:54.2]} 18. Qg6 {[%clk 0:02:33.1]} 18... Qf6 {[%clk 0:00:51.5]} 19. Qh5
{[%clk 0:02:31.5]} 19... e4 {[%clk 0:00:47.1]} 20. Nd4 {[%clk 0:02:28.9]} 20...
Rf2 {[%clk 0:00:41.7]} 21. Rhg1 {[%clk 0:02:23.7]} 21... Rf8 {[%clk 0:00:40.7]}
22. Rge1 {[%clk 0:02:03.4]} 22... d5 {[%clk 0:00:32.4]} 23. h4 {[%clk
0:01:59.9]} 23... Rxg2 {[%clk 0:00:26]} 24. hxg5 {[%clk 0:01:57.3]} 24... hxg5
{[%clk 0:00:26.9]} 25. Qh7 {[%clk 0:01:55.2]} 25... Ne5 {[%clk 0:00:20.6]} 26.
b3 {[%clk 0:01:50.9]} 26... Rh8 {[%clk 0:00:20.2]} 27. Rf1 {[%clk 0:01:45.5]}
27... Nf3 {[%clk 0:00:16.1]} 28. Qd7 {[%clk 0:01:41.4]} 28... a6 {[%clk
0:00:12.4]} 29. Nxe6 {[%clk 0:01:39.2]} 29... Qxc3 {[%clk 0:00:08.7]} 30. Qxc7+
{[%clk 0:01:33.7]} 30... Qxc7 {[%clk 0:00:07.8]} 31. Nxc7 {[%clk 0:01:34.6]}
31... Kxc7 {[%clk 0:00:08.1]} 32. Rxd5 {[%clk 0:01:35.5]} 32... Rhh2 {[%clk
0:00:07.1]} 33. Rc5+ {[%clk 0:01:31.9]} 33... Kb6 {[%clk 0:00:07.6]} 34. b4
{[%clk 0:01:30.6]} 34... Nd4 {[%clk 0:00:06.7]} 35. Kb1 {[%clk 0:01:25.5]} 35...
Rxc2 {[%clk 0:00:06.7]} 36. Rxc2 {[%clk 0:01:18.8]} 36... Nxc2 {[%clk
0:00:07.2]} 37. b5 {[%clk 0:01:11]} 37... e3 {[%clk 0:00:07]} 38. bxa6 {[%clk
0:01:09]} 38... bxa6 {[%clk 0:00:07.9]} 39. Rc1 {[%clk 0:01:04.8]} 39... Na3+
{[%clk 0:00:07.1]} 40. Ka1 {[%clk 0:01:04.3]} 40... Rd2 {[%clk 0:00:07]} 41. Rf1
{[%clk 0:00:55.7]} 41... e2 {[%clk 0:00:07.1]} 42. Rf6+ {[%clk 0:00:55.6]} 42...
Ka5 {[%clk 0:00:07.7]} 43. Rxa6+ {[%clk 0:00:55.5]} 43... Kb5 {[%clk 0:00:05.8]}
44. Rb6+ {[%clk 0:00:55]} 44... Kc5 {[%clk 0:00:05.7]} 45. Rc6+ {[%clk
0:00:55.3]} 45... Kb4 {[%clk 0:00:05.6]} 46. Rb6+ {[%clk 0:00:35.8]} 46... Nb5
{[%clk 0:00:05.9]} 47. a3+ {[%clk 0:00:36.3]} 47... Kc5 {[%clk 0:00:05.9]} 48.
Re6 {[%clk 0:00:32.8]} 48... Rd1+ {[%clk 0:00:06.1]} 49. Kb2 {[%clk 0:00:33.5]}
49... e1=Q {[%clk 0:00:04.2]} 50. Rxe1 {[%clk 0:00:34.2]} 50... Rxe1 {[%clk
0:00:04.2]} 51. a4 {[%clk 0:00:35.1]} 51... Rg1 {[%clk 0:00:04.9]} 52. Kc2
{[%clk 0:00:36]} 52... Nc7 {[%clk 0:00:04]} 53. Kd2 {[%clk 0:00:36.9]} 53... Kb6
{[%clk 0:00:04]} 54. a5+ {[%clk 0:00:37.8]} 54... Kxa5 {[%clk 0:00:03]} 55. Ke3
{[%clk 0:00:38.7]} 55... Rxg4 {[%clk 0:00:03.2]} 56. Kf3 {[%clk 0:00:38.9]}
56... Rf4+ {[%clk 0:00:04.1]} 57. Kg3 {[%clk 0:00:39.8]} 57... Ne6 {[%clk
0:00:04.4]} 58. Kg2 {[%clk 0:00:40.2]} 58... Kb6 {[%clk 0:00:05.3]} 59. Kg3
{[%clk 0:00:41.1]} 59... Kc6 {[%clk 0:00:06.2]} 60. Kg2 {[%clk 0:00:42]} 60...
Kd6 {[%clk 0:00:07.1]} 61. Kg3 {[%clk 0:00:42.8]} 61... Ke5 {[%clk 0:00:08]} 62.
Kg2 {[%clk 0:00:43.7]} 62... Kf5 {[%clk 0:00:08.9]} 63. Kg3 {[%clk 0:00:44.6]}
63... g4 {[%clk 0:00:09.5]} 64. Kg2 {[%clk 0:00:45.5]} 64... Ng5 {[%clk
0:00:09.7]} 65. Kg3 {[%clk 0:00:46.4]} 65... Rf3+ {[%clk 0:00:10.2]} 66. Kg2
{[%clk 0:00:47.3]} 66... Ne4 {[%clk 0:00:10.6]} 67. Kg1 {[%clk 0:00:48.2]} 67...
Rf2 {[%clk 0:00:09.2]} 68. Kh1 {[%clk 0:00:49.1]} 68... Kf4 {[%clk 0:00:09.4]}
69. Kg1 {[%clk 0:00:50]} 69... Kg3 {[%clk 0:00:09.9]} 70. Kh1 {[%clk 0:00:50.9]}
70... Rf1# {[%clk 0:00:10.3]} 0-1

[Event "*** SCC Grand Prix: Titled Tuesday Blitz"]
[Site "Chess.com"]
[Date "2020.09.29"]
[Round "7"]
[White "JiiHart"]
[Black "The_Machine04"]
[Result "0-1"]
[WhiteElo "2070"]
[BlackElo "2282"]
[TimeControl "180+1"]
[EndTime "11:16:31 PDT"]
[Termination "The_Machine04 won on time"]

1. e4 {[%clk 0:03:00.9]} 1... d6 {[%clk 0:03:00.9]} 2. d4 {[%clk 0:02:59.9]}
2... Nf6 {[%clk 0:03:01.8]} 3. Nc3 {[%clk 0:03:00]} 3... e5 {[%clk 0:03:00.9]}
4. Nf3 {[%clk 0:02:53]} 4... Nbd7 {[%clk 0:02:59.8]} 5. dxe5 {[%clk 0:02:39.9]}
5... dxe5 {[%clk 0:02:57.5]} 6. Bc4 {[%clk 0:02:39]} 6... Be7 {[%clk 0:02:56.7]}
7. Bxf7+ {[%clk 0:02:14.9]} 7... Kxf7 {[%clk 0:02:55.4]} 8. Ng5+ {[%clk
0:02:15.8]} 8... Kg6 {[%clk 0:02:54.7]} 9. Ne6 {[%clk 0:02:15.9]} 9... Qg8
{[%clk 0:02:54.4]} 10. Nxc7 {[%clk 0:02:12.3]} 10... Rb8 {[%clk 0:02:54.2]} 11.
h4 {[%clk 0:02:08.8]} 11... h5 {[%clk 0:02:52.8]} 12. N7d5 {[%clk 0:02:04.1]}
12... Nxd5 {[%clk 0:02:34.9]} 13. Nxd5 {[%clk 0:02:03.2]} 13... Bf6 {[%clk
0:02:30.4]} 14. Rh3 {[%clk 0:02:01.1]} 14... Qe6 {[%clk 0:01:38.7]} 15. Rg3+
{[%clk 0:01:46.4]} 15... Kf7 {[%clk 0:01:37.6]} 16. Qf3 {[%clk 0:01:46.3]} 16...
Nb6 {[%clk 0:01:24.9]} 17. Ne3 {[%clk 0:01:33.4]} 17... g6 {[%clk 0:01:09.9]}
18. Bd2 {[%clk 0:01:31.5]} 18... Nc4 {[%clk 0:00:49.4]} 19. Nxc4 {[%clk
0:01:02.2]} 19... Qxc4 {[%clk 0:00:50.3]} 20. Bg5 {[%clk 0:01:02.3]} 20... Qc6
{[%clk 0:00:48.8]} 21. O-O-O {[%clk 0:01:01.5]} 21... Bg4 {[%clk 0:00:43.7]} 22.
Qxf6+ {[%clk 0:00:55.7]} 22... Qxf6 {[%clk 0:00:43]} 23. Bxf6 {[%clk 0:00:55.5]}
23... Kxf6 {[%clk 0:00:43]} 24. Rd6+ {[%clk 0:00:48.2]} 24... Be6 {[%clk
0:00:37.1]} 25. Rgd3 {[%clk 0:00:33.6]} 25... Ke7 {[%clk 0:00:33.6]} 26. f3
{[%clk 0:00:20.1]} 26... Rhd8 {[%clk 0:00:31.8]} 27. Rxd8 {[%clk 0:00:20.5]}
27... Rxd8 {[%clk 0:00:32.7]} 28. Rxd8 {[%clk 0:00:21]} 28... Kxd8 {[%clk
0:00:32.5]} 29. a3 {[%clk 0:00:21.6]} 29... Kc7 {[%clk 0:00:32.4]} 30. Kd2
{[%clk 0:00:20.9]} 30... Kd6 {[%clk 0:00:32.5]} 31. Ke3 {[%clk 0:00:21.3]} 31...
Kc5 {[%clk 0:00:31.5]} 32. g3 {[%clk 0:00:21.8]} 32... a5 {[%clk 0:00:28.9]} 33.
b3 {[%clk 0:00:20]} 33... b5 {[%clk 0:00:26.9]} 34. f4 {[%clk 0:00:19.6]} 34...
Kd6 {[%clk 0:00:18]} 35. b4 {[%clk 0:00:17]} 35... a4 {[%clk 0:00:16]} 36. c3
{[%clk 0:00:17.2]} 36... Bc4 {[%clk 0:00:15.1]} 37. Kf3 {[%clk 0:00:17.2]} 37...
Ke6 {[%clk 0:00:14.7]} 38. Ke3 {[%clk 0:00:16]} 38... Kf6 {[%clk 0:00:12.5]} 39.
Kf3 {[%clk 0:00:15.9]} 39... Bb3 {[%clk 0:00:09.8]} 40. Ke3 {[%clk 0:00:16]}
40... Bd1 {[%clk 0:00:09.3]} 41. Kd2 {[%clk 0:00:12.9]} 41... Bf3 {[%clk
0:00:08.9]} 42. Ke3 {[%clk 0:00:13.1]} 42... Bh1 {[%clk 0:00:08.8]} 43. Kd3
{[%clk 0:00:12.3]} 43... Ke6 {[%clk 0:00:08.6]} 44. Ke3 {[%clk 0:00:12.6]} 44...
exf4+ {[%clk 0:00:07.4]} 45. gxf4 {[%clk 0:00:12.3]} 45... g5 {[%clk 0:00:07.7]}
46. fxg5 {[%clk 0:00:10.1]} 46... Ke5 {[%clk 0:00:07.7]} 47. g6 {[%clk
0:00:05.1]} 47... Bxe4 {[%clk 0:00:07.7]} 48. g7 {[%clk 0:00:02.7]} 48... Bd5
{[%clk 0:00:08.3]} 0-1

[Event "*** SCC Grand Prix: Titled Tuesday Blitz"]
[Site "Chess.com"]
[Date "2020.09.29"]
[Round "7"]
[White "anasta10"]
[Black "giantslayer83"]
[Result "0-1"]
[WhiteElo "2510"]
[BlackElo "2702"]
[TimeControl "180+1"]
[EndTime "11:16:33 PDT"]
[Termination "giantslayer83 won on time"]

1. d4 {[%clk 0:02:48]} 1... Nf6 {[%clk 0:02:55.3]} 2. c4 {[%clk 0:02:44.3]} 2...
e6 {[%clk 0:02:54.7]} 3. Nc3 {[%clk 0:02:44.7]} 3... Bb4 {[%clk 0:02:54]} 4. Bd2
{[%clk 0:02:42.9]} 4... d5 {[%clk 0:02:49.4]} 5. Nf3 {[%clk 0:02:42.7]} 5... O-O
{[%clk 0:02:49.1]} 6. e3 {[%clk 0:02:42]} 6... b6 {[%clk 0:02:49.5]} 7. cxd5
{[%clk 0:02:39.7]} 7... exd5 {[%clk 0:02:49]} 8. Bd3 {[%clk 0:02:40]} 8... Bb7
{[%clk 0:02:48.8]} 9. O-O {[%clk 0:02:40.3]} 9... Bd6 {[%clk 0:02:45.7]} 10. Ne5
{[%clk 0:02:39.8]} 10... c5 {[%clk 0:02:44.7]} 11. f4 {[%clk 0:02:39.2]} 11...
Nc6 {[%clk 0:02:44.4]} 12. Qa4 {[%clk 0:02:11.6]} 12... cxd4 {[%clk 0:02:28.4]}
13. Nxc6 {[%clk 0:02:10.2]} 13... Bxc6 {[%clk 0:02:28.6]} 14. Qxc6 {[%clk
0:02:09.3]} 14... dxc3 {[%clk 0:02:28.9]} 15. Bxc3 {[%clk 0:02:07]} 15... Rc8
{[%clk 0:02:26.5]} 16. Qa4 {[%clk 0:02:03.5]} 16... Bc5 {[%clk 0:02:25.8]} 17.
Rae1 {[%clk 0:01:59.2]} 17... Ng4 {[%clk 0:02:07.6]} 18. Bd4 {[%clk 0:01:53.7]}
18... Qe8 {[%clk 0:01:26.7]} 19. Qxe8 {[%clk 0:01:36.7]} 19... Rfxe8 {[%clk
0:01:27.6]} 20. Bxc5 {[%clk 0:00:45.1]} 20... Rxc5 {[%clk 0:01:28.5]} 21. e4
{[%clk 0:00:42.3]} 21... dxe4 {[%clk 0:01:26.2]} 22. Bxe4 {[%clk 0:00:39.8]}
22... g6 {[%clk 0:01:25.8]} 23. Bf3 {[%clk 0:00:29.1]} 23... Nf6 {[%clk
0:01:13.9]} 24. Rxe8+ {[%clk 0:00:27.7]} 24... Nxe8 {[%clk 0:01:14.8]} 25. Re1
{[%clk 0:00:26.5]} 25... Kf8 {[%clk 0:01:15.1]} 26. Kf2 {[%clk 0:00:24.8]} 26...
Nd6 {[%clk 0:01:14.2]} 27. Re2 {[%clk 0:00:18.9]} 27... h5 {[%clk 0:01:13.6]}
28. g3 {[%clk 0:00:17.4]} 28... Nf5 {[%clk 0:01:12.8]} 29. Rd2 {[%clk
0:00:17.2]} 29... Ke7 {[%clk 0:01:12]} 30. h3 {[%clk 0:00:17.5]} 30... h4 {[%clk
0:01:08.8]} 31. g4 {[%clk 0:00:15.8]} 31... Nd6 {[%clk 0:01:08.3]} 32. Ke3
{[%clk 0:00:15.4]} 32... f6 {[%clk 0:01:06.8]} 33. Re2 {[%clk 0:00:14.9]} 33...
g5 {[%clk 0:01:06]} 34. Kd4+ {[%clk 0:00:12.7]} 34... Kd7 {[%clk 0:01:05.3]} 35.
fxg5 {[%clk 0:00:13.3]} 35... fxg5 {[%clk 0:01:05.3]} 36. Re5 {[%clk 0:00:10.3]}
36... Nb5+ {[%clk 0:00:52.1]} 37. Ke4 {[%clk 0:00:10.1]} 37... Nd6+ {[%clk
0:00:50.6]} 38. Kd4 {[%clk 0:00:09.9]} 38... Rc4+ {[%clk 0:00:51.1]} 39. Kd3
{[%clk 0:00:09.8]} 39... Rf4 {[%clk 0:00:50.3]} 40. Be2 {[%clk 0:00:06.1]} 40...
Nf7 {[%clk 0:00:49.3]} 41. Re4 {[%clk 0:00:03.2]} 41... Rf2 {[%clk 0:00:47.5]}
42. Ke3 {[%clk 0:00:02.5]} 42... Rh2 {[%clk 0:00:47.3]} 43. Bf3 {[%clk
0:00:02.8]} 43... Rxh3 {[%clk 0:00:46.5]} 44. Kf2 {[%clk 0:00:03.4]} 44... Rh2+
{[%clk 0:00:45.1]} 45. Kg1 {[%clk 0:00:02.7]} 45... Rxb2 {[%clk 0:00:44.7]} 46.
a4 {[%clk 0:00:02.8]} 46... Kd6 {[%clk 0:00:42.7]} 47. Rd4+ {[%clk 0:00:02.7]}
47... Ke7 {[%clk 0:00:41.7]} 48. Rd5 {[%clk 0:00:02.4]} 48... Ke6 {[%clk
0:00:39.7]} 49. Rd4 {[%clk 0:00:02.1]} 49... Ne5 {[%clk 0:00:38.8]} 50. Bd5+
{[%clk 0:00:01.6]} 50... Ke7 {[%clk 0:00:38.9]} 51. Bg2 {[%clk 0:00:01]} 51...
a5 {[%clk 0:00:24.9]} 52. Bd5 {[%clk 0:00:01.5]} 52... Rb4 {[%clk 0:00:22.5]}
53. Rd2 {[%clk 0:00:01.1]} 53... Rxg4+ {[%clk 0:00:21.8]} 0-1

[Event "*** SCC Grand Prix: Titled Tuesday Blitz"]
[Site "Chess.com"]
[Date "2020.09.29"]
[Round "7"]
[White "dopolian"]
[Black "dosto07"]
[Result "1-0"]
[WhiteElo "2434"]
[BlackElo "2294"]
[TimeControl "180+1"]
[EndTime "11:16:33 PDT"]
[Termination "dopolian won by resignation"]

1. e4 {[%clk 0:03:00.9]} 1... e5 {[%clk 0:02:41.2]} 2. Nf3 {[%clk 0:02:59.8]}
2... Nc6 {[%clk 0:02:41.2]} 3. Bb5 {[%clk 0:03:00.2]} 3... a6 {[%clk 0:02:41.1]}
4. Bxc6 {[%clk 0:02:59.9]} 4... dxc6 {[%clk 0:02:40.3]} 5. O-O {[%clk 0:03:00]}
5... Bd6 {[%clk 0:02:40]} 6. d4 {[%clk 0:02:55.6]} 6... exd4 {[%clk 0:02:39.6]}
7. Qxd4 {[%clk 0:02:56.5]} 7... f6 {[%clk 0:02:39.5]} 8. e5 {[%clk 0:02:40.8]}
8... fxe5 {[%clk 0:02:38.5]} 9. Nxe5 {[%clk 0:02:41.7]} 9... Qf6 {[%clk
0:02:13.2]} 10. Re1 {[%clk 0:02:36.5]} 10... Ne7 {[%clk 0:02:12.8]} 11. Nf3
{[%clk 0:02:29.8]} 11... Qxd4 {[%clk 0:02:09.7]} 12. Nxd4 {[%clk 0:02:30.7]}
12... O-O {[%clk 0:02:03.6]} 13. Bg5 {[%clk 0:02:30.7]} 13... Nf5 {[%clk
0:02:02.5]} 14. Nf3 {[%clk 0:02:15.7]} 14... Bd7 {[%clk 0:01:54.7]} 15. Nc3
{[%clk 0:02:14.8]} 15... Rae8 {[%clk 0:01:52.7]} 16. Ne4 {[%clk 0:02:10]} 16...
h6 {[%clk 0:01:50.7]} 17. Nxd6 {[%clk 0:02:02.4]} 17... cxd6 {[%clk 0:01:46.7]}
18. Bf4 {[%clk 0:01:57.4]} 18... g5 {[%clk 0:01:45.1]} 19. Bg3 {[%clk
0:01:47.5]} 19... Nxg3 {[%clk 0:01:36.6]} 20. hxg3 {[%clk 0:01:48.4]} 20...
Rxe1+ {[%clk 0:01:30.6]} 21. Rxe1 {[%clk 0:01:49.3]} 21... Re8 {[%clk
0:01:30.2]} 22. Rxe8+ {[%clk 0:01:47.2]} 22... Bxe8 {[%clk 0:01:30.2]} 23. Nd4
{[%clk 0:01:43.8]} 23... Bf7 {[%clk 0:01:28]} 24. Nf5 {[%clk 0:01:27.2]} 24...
Bxa2 {[%clk 0:01:23.8]} 25. Nxd6 {[%clk 0:01:26.7]} 25... b6 {[%clk 0:01:21.9]}
26. Nc8 {[%clk 0:01:22]} 26... Kf7 {[%clk 0:01:09.9]} 27. Nxb6 {[%clk
0:01:19.2]} 27... Ke6 {[%clk 0:01:08.4]} 28. Kf1 {[%clk 0:01:06.6]} 28... Bb1
{[%clk 0:01:08.1]} 29. c3 {[%clk 0:01:03]} 29... Kd6 {[%clk 0:00:58.3]} 30. Nc4+
{[%clk 0:00:51.7]} 30... Kc5 {[%clk 0:00:58.1]} 31. Ne3 {[%clk 0:00:52.1]} 31...
Bg6 {[%clk 0:00:44.2]} 32. Ke2 {[%clk 0:00:51.1]} 32... a5 {[%clk 0:00:43.2]}
33. f4 {[%clk 0:00:49.2]} 33... gxf4 {[%clk 0:00:42.2]} 34. gxf4 {[%clk
0:00:50.1]} 34... Be4 {[%clk 0:00:39.3]} 35. g4 {[%clk 0:00:48.6]} 35... a4
{[%clk 0:00:34.9]} 36. f5 {[%clk 0:00:34.4]} 36... Kd6 {[%clk 0:00:34]} 37. Nc4+
{[%clk 0:00:27.6]} 37... Ke7 {[%clk 0:00:24.3]} 38. Ke3 {[%clk 0:00:24.3]} 38...
Bc2 {[%clk 0:00:22.1]} 39. Kf4 {[%clk 0:00:20.4]} 39... Kf6 {[%clk 0:00:21.8]}
40. Ne5 {[%clk 0:00:18.7]} 40... c5 {[%clk 0:00:16.6]} 41. Nd7+ {[%clk
0:00:18.6]} 41... Ke7 {[%clk 0:00:15.7]} 42. Nxc5 {[%clk 0:00:19.5]} 42... Bd1
{[%clk 0:00:14.7]} 43. Ne4 {[%clk 0:00:17.5]} 43... Kf7 {[%clk 0:00:14.1]} 44.
g5 {[%clk 0:00:11.3]} 44... hxg5+ {[%clk 0:00:13.4]} 45. Nxg5+ {[%clk
0:00:12.2]} 45... Ke7 {[%clk 0:00:11.2]} 46. Ne4 {[%clk 0:00:13.1]} 46... Kf7
{[%clk 0:00:09.8]} 47. Ke5 {[%clk 0:00:13.1]} 47... Bc2 {[%clk 0:00:10]} 48. f6
{[%clk 0:00:12.3]} 48... Bb1 {[%clk 0:00:09.3]} 49. Nd6+ {[%clk 0:00:10.8]}
49... Kf8 {[%clk 0:00:09.8]} 50. Kd5 {[%clk 0:00:08.1]} 50... Ba2+ {[%clk
0:00:09.3]} 51. Kc5 {[%clk 0:00:08.3]} 51... Bb1 {[%clk 0:00:09.1]} 52. Kb4
{[%clk 0:00:08.1]} 52... Bc2 {[%clk 0:00:08.9]} 53. c4 {[%clk 0:00:08]} 53...
Bd3 {[%clk 0:00:06.1]} 54. c5 {[%clk 0:00:08.2]} 1-0

[Event "*** SCC Grand Prix: Titled Tuesday Blitz"]
[Site "Chess.com"]
[Date "2020.09.29"]
[Round "7"]
[White "AsaHoffmann"]
[Black "LionTheLeon_06"]
[Result "0-1"]
[WhiteElo "2402"]
[BlackElo "2604"]
[TimeControl "180+1"]
[EndTime "11:16:34 PDT"]
[Termination "LionTheLeon_06 won by resignation"]

1. d4 {[%clk 0:02:55.5]} 1... Nf6 {[%clk 0:02:58.6]} 2. Bg5 {[%clk 0:02:51.7]}
2... c5 {[%clk 0:02:54.7]} 3. d5 {[%clk 0:02:51.1]} 3... Ne4 {[%clk 0:02:54.7]}
4. Bc1 {[%clk 0:02:49.3]} 4... e6 {[%clk 0:02:50.9]} 5. Nc3 {[%clk 0:02:44.6]}
5... Nxc3 {[%clk 0:02:47.7]} 6. bxc3 {[%clk 0:02:44.3]} 6... g6 {[%clk
0:02:47.3]} 7. c4 {[%clk 0:02:40.1]} 7... Bg7 {[%clk 0:02:47.1]} 8. Rb1 {[%clk
0:02:39.9]} 8... d6 {[%clk 0:02:41.1]} 9. Nf3 {[%clk 0:02:37.8]} 9... O-O {[%clk
0:02:39.8]} 10. Bd2 {[%clk 0:02:35]} 10... Re8 {[%clk 0:02:32.1]} 11. e3 {[%clk
0:02:34.6]} 11... Nd7 {[%clk 0:02:18.1]} 12. Be2 {[%clk 0:02:32.9]} 12... Nb6
{[%clk 0:02:05.6]} 13. Ba5 {[%clk 0:02:28.7]} 13... Qd7 {[%clk 0:01:59.9]} 14.
O-O {[%clk 0:02:23.3]} 14... Qa4 {[%clk 0:01:58.2]} 15. Bxb6 {[%clk 0:02:18.1]}
15... axb6 {[%clk 0:01:57.2]} 16. Rxb6 {[%clk 0:02:16.8]} 16... Ra6 {[%clk
0:01:51.7]} 17. Rxa6 {[%clk 0:02:08.6]} 17... Qxa6 {[%clk 0:01:52.6]} 18. Qb1
{[%clk 0:01:57.2]} 18... exd5 {[%clk 0:01:47.3]} 19. Nd2 {[%clk 0:01:47.1]}
19... d4 {[%clk 0:01:33.4]} 20. e4 {[%clk 0:01:39.9]} 20... Bd7 {[%clk
0:01:33.2]} 21. Bd3 {[%clk 0:01:33]} 21... Ra8 {[%clk 0:01:32.4]} 22. Nf3 {[%clk
0:01:17.7]} 22... Bc6 {[%clk 0:01:30.2]} 23. h4 {[%clk 0:01:11.5]} 23... Qxa2
{[%clk 0:01:24.2]} 24. Qb6 {[%clk 0:01:10.4]} 24... Qa5 {[%clk 0:01:20]} 25. Qb3
{[%clk 0:01:06.4]} 25... Qc3 {[%clk 0:01:14.6]} 26. Qb6 {[%clk 0:01:04.5]} 26...
Qa5 {[%clk 0:01:10.5]} 27. Qb3 {[%clk 0:01:03.7]} 27... h5 {[%clk 0:01:07.3]}
28. Ng5 {[%clk 0:01:02.5]} 28... Bf6 {[%clk 0:01:03.2]} 29. f4 {[%clk
0:00:59.8]} 29... Re8 {[%clk 0:00:56.9]} 30. Kh2 {[%clk 0:00:44.7]} 30... Qd2
{[%clk 0:00:52.8]} 31. Qb6 {[%clk 0:00:39.3]} 31... Bd8 {[%clk 0:00:31.4]} 32.
Qa7 {[%clk 0:00:29.5]} 32... Bc7 {[%clk 0:00:31]} 33. Qa1 {[%clk 0:00:22.6]}
33... Bd8 {[%clk 0:00:23.2]} 34. Qd1 {[%clk 0:00:18.4]} 34... Qxd1 {[%clk
0:00:23]} 35. Rxd1 {[%clk 0:00:17.8]} 35... Bxg5 {[%clk 0:00:23.3]} 36. hxg5
{[%clk 0:00:16.6]} 36... Bxe4 {[%clk 0:00:23.5]} 37. Bxe4 {[%clk 0:00:15.4]}
37... Rxe4 {[%clk 0:00:23.1]} 38. Rb1 {[%clk 0:00:14.5]} 38... Re7 {[%clk
0:00:19.9]} 39. Kg3 {[%clk 0:00:13.5]} 39... Kf8 {[%clk 0:00:19.4]} 40. f5
{[%clk 0:00:13.4]} 40... gxf5 {[%clk 0:00:18.3]} 41. Kf4 {[%clk 0:00:13.3]}
41... Ke8 {[%clk 0:00:16.8]} 42. Kxf5 {[%clk 0:00:12.7]} 42... Re2 {[%clk
0:00:16.7]} 43. Rxb7 {[%clk 0:00:11.2]} 43... Rxc2 {[%clk 0:00:16.6]} 44. Rb8+
{[%clk 0:00:10.1]} 44... Ke7 {[%clk 0:00:16.7]} 45. Rb7+ {[%clk 0:00:10]} 45...
Kf8 {[%clk 0:00:17.2]} 46. Rb8+ {[%clk 0:00:09.9]} 46... Kg7 {[%clk 0:00:17.7]}
47. Rd8 {[%clk 0:00:09.6]} 47... Rf2+ {[%clk 0:00:16.4]} 48. Ke4 {[%clk
0:00:08.6]} 48... Rxg2 {[%clk 0:00:16.8]} 49. Rxd6 {[%clk 0:00:07.8]} 49... Rxg5
{[%clk 0:00:17.1]} 50. Kf4 {[%clk 0:00:07.5]} 50... f6 {[%clk 0:00:14.3]} 51.
Rd7+ {[%clk 0:00:05.4]} 51... Kg6 {[%clk 0:00:14.8]} 52. Rd8 {[%clk 0:00:05.2]}
52... Rg4+ {[%clk 0:00:15.2]} 53. Kf3 {[%clk 0:00:04.6]} 53... Rg5 {[%clk
0:00:13.6]} 0-1